fUSD/lending_fUSD_20240317
["ID","MTS","AMOUNT","RATE_DAILY","PERIOD"]
[319333949,1710667845492,-2000.0,0.00018,2]
[319333950,1710667845501,-167.73652922,0.00018,2]
[319333951,1710667845510,-211.13956938,0.00018,2]
[319333952,1710667845519,-7165.49994947,0.00018,2]
[319333953,1710667845528,-271.30134152,0.00018,2]
[319333954,1710667845538,-389.336264,0.00018,2]
[319333955,1710667845547,-220.0,0.00018,2]
[319333956,1710667845556,-349.0,0.00018,2]
[319333957,1710667845565,-1500.0,0.00018,2]
[319333958,1710667845574,-492.47,0.00018002,2]
[319333959,1710667845583,-500.0,0.00018007,2]
[319333960,1710667845593,-500.0,0.00018007,2]
[319333961,1710667845602,-500.0,0.00018007,2]
[319333962,1710667845611,-698.27,0.00018007,2]
[319333963,1710667845620,-500.0,0.00018007,2]
[319333964,1710667845629,-500.0,0.00018007,2]
[319333965,1710667845639,-125924.09704799,0.00018008,2]
[319333966,1710667845728,-1237.86434096,0.00018008,2]
[319333967,1710667845740,-1484.10709821,0.00018008,2]
[319333968,1710667845754,-658.89701571,0.00018008,2]
[319333969,1710667845765,-618.42124398,0.00018008,2]
[319333970,1710667845776,-401.91663883,0.00018008,2]
[319333971,1710667845788,-1045.79908188,0.00018008,2]
[319333972,1710667845799,-35281.89140727,0.00018008,2]
[319333973,1710667845810,-668.2,0.00018008,2]
[319333974,1710667845822,-256.29161796,0.00018008,2]
[319333975,1710667845834,-802.50664446,0.00018008,2]
[319333976,1710667845849,-344.585,0.00018008,2]
[319333977,1710667845861,-437.59392721,0.00018008,2]
[319333978,1710667845872,-238.54856343,0.00018008,2]
[319333979,1710667845883,-11670.0240192,0.00018008,2]
[319333980,1710667845893,-15793.20484729,0.00018008,2]
[319333981,1710667845902,-500.0,0.00018017,2]
[319333982,1710667845912,-172.98955562,0.00018031,2]
[319333983,1710667845924,-504.46985353,0.00018031,2]
[319333984,1710667845933,-947.26,0.00018055,2]
[319333985,1710667845943,-568.51847232,0.00018078,2]
[319333986,1710667845952,-299.31663,0.00018081,2]
[319333987,1710667845962,-500.0,0.00018082,2]
[319333988,1710667845971,-1643.79397066,0.000181,2]
[319333989,1710667845980,-500.0,0.0001811,2]
[319333990,1710667845989,-150.71,0.00018136,2]
[319333991,1710667845998,-2324.66052453,0.00018162,2]
[319333992,1710667846007,-152.0,0.00018179,7]
[319333993,1710667846017,-165.56873329,0.00018189,2]
[319333994,1710667846026,-677.45940915,0.00018189,2]
[319333995,1710667846036,-516.7,0.00018192,2]
[319333996,1710667846045,-150.0,0.00018192,2]
[319333997,1710667846055,-550.58,0.00018192,2]
[319333999,1710667846064,-363.12,0.00018192,2]
[319334000,1710667846073,-150.0,0.00018192,2]
[319334001,1710667846082,-300.0,0.00018192,2]
[319334002,1710667846092,-151.26,0.00018192,2]
[319334003,1710667846102,-238.7,0.00018192,2]
[319334004,1710667846112,-414.91,0.00018192,2]
[319334006,1710667846122,-150.0,0.00018192,2]
[319334007,1710667846132,-516.7,0.00018192,2]
[319334010,1710667846142,-150.0,0.00018192,2]
[319334013,1710667846151,-469.91,0.00018192,2]
[319334015,1710667846160,-150.0,0.00018192,2]
[319334017,1710667846169,-414.91,0.00018192,2]
[319334019,1710667846178,-150.0,0.00018192,2]
[319334021,1710667846187,-414.91,0.00018192,2]
[319334023,1710667846196,-500.0,0.00018203,2]
[319334025,1710667846205,-166.66666666,0.00018213,2]
[319334027,1710667846215,-603.57569566,0.00018217,2]
[319334029,1710667846224,-168.3221185,0.00018226,2]
[319334031,1710667846233,-500.0,0.00018244,2]
[319334033,1710667846242,-500.0,0.00018244,2]
[319334035,1710667846251,-613.81,0.00018245,10]
[319334037,1710667846260,-114.6679257,0.00018248,2]
[319334041,1710667846290,-62.32966173,0.00018248,2]
[319334043,1710667846299,-154.11102107,0.0001825,2]
[319334045,1710667846308,-92.52139516,0.00018255,2]
[319334047,1710667846320,-475.99707716,0.00018255,2]
[319334049,1710667846331,-677.45940915,0.00018255,2]
[319334051,1710667846344,-892.31727136,0.0001826,2]
[319334053,1710667846354,-151.16603036,0.00018272,2]
[319334055,1710667846364,-151.16603036,0.00018275,2]
[319334057,1710667846373,-156.01973643,0.00018281,2]
[319334059,1710667846384,-500.0,0.00018296,2]
[319334061,1710667846395,-246.62452627,0.00018307,2]
[319334063,1710667846405,-215.0,0.0001831,2]
[319334065,1710667846414,-246.62452627,0.00018343,2]
[319334067,1710667846424,-239.65,0.00018349,2]
[319334069,1710667846436,-210.0,0.0001835,2]
[319334071,1710667846445,-288.0,0.0001835,2]
[319334073,1710667846455,-535.0,0.0001835,2]
[319334075,1710667846465,-205.584426,0.00018356,2]
[319334077,1710667846475,-168.49322418,0.00018359,2]
[319334079,1710667846486,-522.72,0.00018376,2]
[319334081,1710667846495,-500.0,0.00018389,2]
[319334083,1710667846505,-677.45940915,0.00018393,2]
[319334085,1710667846514,-169.36639489,0.00018393,2]
[319334086,1710667846523,-190.88982137,0.00018397,2]
[319334087,1710667846532,-156.78245888,0.00018404,2]
[319334088,1710667846542,-438.40524895,0.00018404,2]
[319334089,1710667846550,-500.0,0.0001842,2]
[319334091,1710667846560,-383.82,0.0001842,2]
[319334093,1710667846568,-500.0,0.0001842,2]
[319334095,1710667846577,-500.0,0.0001842,2]
[319334097,1710667846586,-2358.24,0.0001842,2]
[319334099,1710667846597,-1776.55,0.0001842,2]
[319334101,1710667846606,-583.74,0.0001842,2]
[319334103,1710667846615,-500.0,0.0001842,2]
[319334105,1710667846624,-2324.66052453,0.00018423,2]
[319334107,1710667846633,-677.45940915,0.00018431,2]
[319334109,1710667846643,-16151.18444739,0.0001844,2]
[319334111,1710667846653,-166.74,0.00018444,2]
[319334113,1710667846662,-167.05,0.00018444,2]
[319334115,1710667846672,-152.0,0.00018459,8]
[319334117,1710667846682,-299.31663,0.0001846,2]
[319334119,1710667846691,-568.51847232,0.00018461,2]
[319334121,1710667846701,-4000.0,0.00018463,7]
[319334123,1710667846711,-677.45940915,0.00018467,2]
[319334125,1710667846721,-299.31663,0.0001847,2]
[319334127,1710667846732,-500.0,0.00018482,2]
[319334129,1710667846742,-154.11102107,0.00018488,2]
[319334131,1710667846756,-5006.0,0.000185,2]
[319334132,1710667846766,-14820.0,0.000185,6]
[319334133,1710667846776,-635.90327631,0.000185,2]
[319334134,1710667846786,-1184.43,0.000185,6]
[319334135,1710667846796,-1500.0,0.000185,2]
[319334136,1710667846805,-167.76085612,0.00018506,2]
[319334137,1710667846815,-33222.79355664,0.00018507,2]
[319334138,1710667846825,-277.61985739,0.00018516,2]
[319334139,1710667846834,-168.3221185,0.00018521,2]
[319334140,1710667846847,-2000.0,0.00018526,2]
[319334141,1710667846856,-2000.0,0.00018554,2]
[319334142,1710667846865,-156.51853803,0.00018567,2]
[319334143,1710667846875,-500.0,0.00018574,2]
[319334144,1710667846884,-892.31727136,0.0001858,2]
[319334145,1710667846894,-467950.36710095,0.000186,2]
[319334146,1710667846928,-377.87750004,0.000186,2]
[319334147,1710667846974,-50471.27287075,0.000186,2]
[319334148,1710667846986,-4649.20835009,0.000186,2]
[319334149,1710667846998,-271.08725928,0.000186,2]
[319334150,1710667847011,-856.12086506,0.000186,2]
[319334151,1710667847022,-466.25421593,0.000186,2]
[319334152,1710667847033,-500.0,0.000186,2]
[319334153,1710667847045,-82248.8118379,0.000186,2]
[319334154,1710667847054,-174.00139985,0.00018608,2]
[319334155,1710667847063,-155.0817669,0.00018615,2]
[319334156,1710667847073,-426.51,0.0001863,2]
[319334157,1710667847082,-426.51,0.0001863,2]
[319334158,1710667847092,-426.51,0.0001863,2]
[319334159,1710667847103,-426.51,0.0001863,2]
[319334160,1710667847112,-426.51,0.0001863,2]
[319334161,1710667847121,-426.51,0.0001863,2]
[319334162,1710667847130,-426.51,0.0001863,2]
[319334163,1710667847139,-426.51,0.0001863,2]
[319334164,1710667847149,-426.51,0.0001863,2]
[319334165,1710667847159,-426.51,0.0001863,2]
[319334166,1710667847168,-426.51,0.0001863,2]
[319334167,1710667847178,-426.51,0.0001863,2]
[319334168,1710667847187,-426.51,0.0001863,2]
[319334169,1710667847197,-500.0,0.0001863,2]
[319334170,1710667847207,-158.29036304,0.0001863,2]
[319334171,1710667847216,-277.61985739,0.00018649,2]
[319334172,1710667847226,-273.0924039,0.0001865,2]
[319334173,1710667847235,-299.31663,0.0001866,2]
[319334174,1710667847245,-500.0,0.00018667,2]
[319334175,1710667847255,-568.51847232,0.00018669,2]
[319334176,1710667847263,-613.81,0.00018681,10]
[319334177,1710667847272,-2000.0,0.00018696,2]
[319334178,1710667847281,-166.66008376,0.00018701,2]
[319334179,1710667847291,-232.56,0.00018701,2]
[319334180,1710667847300,-568.51847232,0.00018705,2]
[319334181,1710667847309,-2000.0,0.00018718,2]
[319334182,1710667847319,-215.0,0.0001873,2]
[319334183,1710667847329,-156.51853803,0.0001873,2]
[319334184,1710667847339,-152.0,0.0001874,9]
[319334185,1710667847353,-15000.0,0.0001875,3]
[319334186,1710667847362,-210.0,0.0001876,2]
[319334187,1710667847371,-288.0,0.0001876,2]
[319334188,1710667847381,-216.0,0.0001876,2]
[319334189,1710667847390,-535.0,0.0001876,2]
[319334190,1710667847400,-500.0,0.0001876,2]
[319334191,1710667847409,-155.0817669,0.00018762,2]
[319334192,1710667847419,-158.29036304,0.00018763,2]
[319334193,1710667847429,-155.0817669,0.0001877,2]
[319334194,1710667847439,-2324.66052453,0.00018788,2]
[319334195,1710667847449,-506.36597383,0.00018789,2]
[319334196,1710667847458,-500.0,0.00018789,2]
[319334197,1710667847469,-426.51,0.00018789,2]
[319334198,1710667847478,-500.0,0.00018789,2]
[319334199,1710667847487,-260.92,0.00018789,2]
[319334200,1710667847497,-500.0,0.00018792,2]
[319334201,1710667847506,-500.0,0.00018798,2]
[319334202,1710667847515,-698.27,0.00018798,2]
[319334203,1710667847524,-500.0,0.00018799,2]
[319334204,1710667847533,-500.0,0.00018799,2]
[319334205,1710667847542,-500.0,0.00018799,2]
[319334206,1710667847551,-2358.24,0.00018799,2]
[319334207,1710667847560,-1776.55,0.00018799,2]
[319334208,1710667847569,-583.74,0.00018799,2]
[319334209,1710667847585,-639.17329342,0.00018799,2]
[319334210,1710667847600,-164736.45379807,0.000188,2]
[319334211,1710667847612,-154.982423,0.000188,2]
[319334212,1710667847621,-151.0,0.000188,2]
[319334213,1710667847633,-2623.739519,0.000188,2]
[319334214,1710667847642,-2623.739519,0.000188,2]
[319334215,1710667847651,-151.0,0.000188,2]
[319334216,1710667847661,-151.0,0.000188,2]
[319334217,1710667847670,-151.0,0.000188,2]
[319334218,1710667847679,-179.769944,0.000188,2]
[319334219,1710667847687,-498.942931,0.000188,2]
[319334220,1710667847696,-179.769944,0.000188,2]
[319334221,1710667847705,-498.942931,0.000188,2]
[319334222,1710667847714,-151.0,0.000188,2]
[319334223,1710667847725,-151.0,0.000188,2]
[319334224,1710667847735,-156.51853803,0.00018808,2]
[319334225,1710667847745,-2324.66052453,0.00018844,2]
[319334226,1710667847757,-151.16603036,0.00018849,2]
[319334227,1710667847767,-500.0,0.00018853,2]
[319334228,1710667847776,-155.0817669,0.00018861,2]
[319334229,1710667847788,-400.0,0.0001887,2]
[319334230,1710667847798,-151.16603036,0.00018886,2]
[319334231,1710667847807,-500.0,0.00018888,2]
[319334232,1710667847817,-11983.69776775,0.0001889,3]
[319334233,1710667847827,-10000.0,0.00018899,2]
[319334234,1710667847838,-683.42066205,0.000189,2]
[319334235,1710667847849,-190.88982137,0.000189,2]
[319334236,1710667847860,-892.31727136,0.000189,2]
[319334237,1710667847871,-154.06805737,0.000189,2]
[319334238,1710667847880,-151.0,0.000189,2]
[319334239,1710667847890,-151.0,0.000189,2]
[319334240,1710667847899,-17575.0,0.000189,3]
[319334242,1710667847909,-438.40524895,0.000189,2]
[319334244,1710667847919,-155.0817669,0.00018904,2]
[319334246,1710667847930,-277.61985739,0.0001891,2]
[319334248,1710667847940,-500.0,0.00018931,2]
[319334250,1710667847949,-698.27,0.00018931,2]
[319334252,1710667847959,-500.0,0.00018932,2]
[319334254,1710667847969,-426.51,0.00018932,2]
[319334256,1710667847978,-534.14994174,0.00018932,2]
[319334258,1710667847987,-500.0,0.00018932,2]
[319334260,1710667847996,-500.0,0.00018932,2]
[319334261,1710667848006,-500.0,0.00018932,2]
[319334262,1710667848015,-2358.24,0.00018932,2]
[319334263,1710667848025,-3898.8564,0.00018932,2]
[319334264,1710667848035,-1776.55,0.00018932,2]
[319334265,1710667848045,-33340.813942,0.00018932,2]
[319334266,1710667848055,-583.74,0.00018932,2]
[319334267,1710667848064,-1504.2592407,0.00018933,2]
[319334268,1710667848074,-1550.68678013,0.00018936,2]
[319334269,1710667848084,-168.3221185,0.00018945,2]
[319334270,1710667848096,-500.0,0.00018946,2]
[319334271,1710667848106,-2324.66052453,0.0001896,2]
[319334272,1710667848116,-400.0,0.0001897,2]
[319334273,1710667848125,-2000.0,0.00018973,2]
[319334274,1710667848135,-151.16603036,0.00018976,2]
[319334275,1710667848145,-500.0,0.00018986,2]
[319334276,1710667848156,-426.51,0.00018986,2]
[319334277,1710667848165,-500.0,0.00018986,2]
[319334278,1710667848175,-698.27,0.00018986,2]
[319334279,1710667848185,-500.0,0.00018986,2]
[319334280,1710667848195,-2358.24,0.00018986,2]
[319334281,1710667848204,-1776.55,0.00018986,2]
[319334282,1710667848214,-583.74,0.00018986,2]
[319334283,1710667848224,-1242.5011355,0.00018987,2]
[319334284,1710667848234,-980.7430304,0.00018987,2]
[319334285,1710667848244,-718.9849252,0.00018987,2]
[319334286,1710667848253,-457.22682,0.00018987,2]
[319334287,1710667848263,-195.4687149,0.00018987,2]
[319334288,1710667848272,-151.0,0.00018987,2]
[319334289,1710667848282,-151.0,0.00018987,2]
[319334290,1710667848292,-151.0,0.00018987,2]
[319334291,1710667848301,-151.0,0.00018987,2]
[319334292,1710667848310,-151.0,0.00018987,2]
[319334293,1710667848320,-151.0,0.00018987,2]
[319334294,1710667848330,-151.0,0.00018987,2]
[319334295,1710667848339,-151.0,0.00018987,2]
[319334296,1710667848352,-151.0,0.00018987,2]
[319334297,1710667848362,-525.453849,0.00018987,2]
[319334298,1710667848372,-151.0,0.00018987,2]
[319334299,1710667848381,-525.453849,0.00018987,2]
[319334300,1710667848392,-151.0,0.00018987,2]
[319334301,1710667848401,-151.0,0.00018987,2]
[319334302,1710667848411,-151.0,0.00018987,2]
[319334303,1710667848420,-151.0,0.00018987,2]
[319334304,1710667848430,-151.0,0.00018987,2]
[319334305,1710667848440,-151.0,0.00018987,2]
[319334306,1710667848449,-151.0,0.00018987,2]
[319334307,1710667848458,-151.0,0.00018987,2]
[319334308,1710667848469,-151.0,0.00018987,2]
[319334309,1710667848478,-151.0,0.00018987,2]
[319334310,1710667848488,-5404.4525193,0.00018987,2]
[319334311,1710667848499,-6910.0486386,0.00018987,2]
[319334312,1710667848510,-8415.6447579,0.00018987,2]
[319334313,1710667848520,-9921.2408772,0.00018987,2]
[319334314,1710667848530,-11426.8369965,0.00018987,2]
[319334315,1710667848542,-46215.8200806,0.00018987,2]
[319334316,1710667848552,-59090.8262192,0.00018987,2]
[319334317,1710667848561,-71965.8323579,0.00018987,2]
[319334318,1710667848572,-84840.8384965,0.00018987,2]
[319334319,1710667848581,-97715.8446351,0.00018987,2]
[319334320,1710667848591,-151.0,0.00018987,2]
[319334321,1710667848603,-151.0,0.00018987,2]
[319334322,1710667848613,-1036.10000099,0.00018988,2]
[319334323,1710667848622,-1272.43679876,0.0001899,2]
[319334324,1710667848631,-169.25492341,0.00018998,2]
[319334325,1710667848641,-187.32661497,0.00018998,2]
[319334326,1710667848651,-775.4794766,0.00018998,2]
[319334327,1710667848661,-426.51,0.00018999,2]
[319334328,1710667848671,-426.51,0.00018999,2]
[319334329,1710667848680,-426.51,0.00018999,2]
[319334330,1710667848690,-426.51,0.00018999,2]
[319334331,1710667848701,-426.51,0.00018999,2]
[319334332,1710667848710,-426.51,0.00018999,2]
[319334333,1710667848720,-426.51,0.00018999,2]
[319334334,1710667848731,-426.66711861,0.00018999,2]
[319334335,1710667848741,-500.0,0.00018999,2]
[319334336,1710667848754,-500.0,0.00018999,2]
[319334337,1710667848763,-365.76,0.00018999,2]
[319334338,1710667848773,-698.27,0.00018999,2]
[319334339,1710667848784,-698.27,0.00018999,2]
[319334340,1710667848794,-698.27,0.00018999,2]
[319334341,1710667848804,-698.27,0.00018999,2]
[319334342,1710667848814,-698.27,0.00018999,2]
[319334343,1710667848823,-698.27,0.00018999,2]
[319334344,1710667848834,-698.27,0.00018999,2]
[319334345,1710667848845,-698.27,0.00018999,2]
[319334346,1710667848855,-698.27,0.00018999,2]
[319334347,1710667848865,-698.48,0.00018999,2]
[319334348,1710667848875,-500.0,0.00018999,2]
[319334349,1710667848884,-376.05,0.00018999,2]
[319334350,1710667848895,-2358.24,0.00018999,2]
[319334351,1710667848904,-2358.24,0.00018999,2]
[319334352,1710667848915,-2358.24,0.00018999,2]
[319334353,1710667848924,-2358.24,0.00018999,2]
[319334354,1710667848935,-2358.24,0.00018999,2]
[319334355,1710667848945,-2358.24,0.00018999,2]
[319334356,1710667848956,-2358.24,0.00018999,2]
[319334357,1710667848966,-2358.24,0.00018999,2]
[319334358,1710667848975,-2358.24,0.00018999,2]
[319334359,1710667848986,-2358.36466065,0.00018999,2]
[319334360,1710667848995,-1776.55,0.00018999,2]
[319334361,1710667849006,-1776.55,0.00018999,2]
[319334362,1710667849015,-1776.55,0.00018999,2]
[319334363,1710667849025,-1776.55,0.00018999,2]
[319334364,1710667849035,-1776.55,0.00018999,2]
[319334365,1710667849044,-1776.55,0.00018999,2]
[319334366,1710667849054,-1776.55,0.00018999,2]
[319334367,1710667849064,-1776.55,0.00018999,2]
[319334368,1710667849074,-1776.55,0.00018999,2]
[319334369,1710667849084,-1776.62051627,0.00018999,2]
[319334370,1710667849094,-583.74,0.00018999,2]
[319334371,1710667849104,-583.74,0.00018999,2]
[319334372,1710667849114,-583.74,0.00018999,2]
[319334373,1710667849124,-583.74,0.00018999,2]
[319334374,1710667849133,-583.74,0.00018999,2]
[319334375,1710667849142,-583.74,0.00018999,2]
[319334376,1710667849151,-583.74,0.00018999,2]
[319334377,1710667849161,-583.74,0.00018999,2]
[319334378,1710667849171,-583.74,0.00018999,2]
[319334379,1710667849180,-583.8,0.00018999,2]
[319334380,1710667849190,-151.0,0.00018999,2]
[319334381,1710667849200,-2623.739519,0.00018999,2]
[319334382,1710667849210,-2623.739519,0.00018999,2]
[319334383,1710667849220,-151.0,0.00018999,2]
[319334384,1710667849229,-151.0,0.00018999,2]
[319334385,1710667849239,-151.0,0.00018999,2]
[319334386,1710667849249,-179.769944,0.00018999,2]
[319334387,1710667849259,-498.942931,0.00018999,2]
[319334388,1710667849270,-179.769944,0.00018999,2]
[319334389,1710667849280,-498.942931,0.00018999,2]
[319334390,1710667849290,-151.0,0.00018999,2]
[319334391,1710667849299,-151.0,0.00018999,2]
[319334392,1710667849310,-648.26067603,0.00019,3]
[319334393,1710667849320,-114677.66358066,0.00019,2]
[319334394,1710667849381,-21430.94946003,0.00019,2]
[319334395,1710667849394,-2947.47,0.00019,2]
[319334396,1710667849411,-45834.3753253,0.00019,2]
[319334397,1710667849422,-20322.0,0.00019,3]
[319334398,1710667849432,-25000.0,0.00019,3]
[319334399,1710667849441,-10000.0,0.00019,8]
[319334400,1710667849451,-500.0,0.00019,2]
[319334401,1710667849461,-150418.61449197,0.00019,2]
[319334402,1710667849471,-1314192.49591154,0.00019,2]
[319334403,1710667849483,-389.50758122,0.00019,2]
[319334404,1710667849495,-9184.61590043,0.00019,2]
[319334405,1710667849506,-398.25,0.00019,2]
[319334406,1710667849517,-278.16548255,0.00019,2]
[319334407,1710667849529,-303.01761446,0.00019,2]
[319334408,1710667849541,-404.75808895,0.00019,2]
[319334409,1710667849553,-6490.48297122,0.00019,2]
[319334410,1710667849663,-292.50270122,0.00015478,2]
[319334411,1710667849711,-760.39054854,0.00015478,2]
[319334412,1710667849721,-13457.14126728,0.00019,2]
[319334413,1710667849734,-6321.65627162,0.00019,2]
[319334414,1710667849748,-26323.50352667,0.00019,2]
[319334415,1710667849762,-30615.076025,0.00019,2]
[319334416,1710667849775,-74334.11001504,0.00019,2]
[319334417,1710667849787,-8727.31043329,0.00019,2]
[319334418,1710667849830,1540.77075956,0.00011585,2]
[319334419,1710667849897,286.68077711,0.00011585,2]
[319334420,1710667849915,-454.68489641,0.00019,2]
[319334421,1710667849927,-2303.75270085,0.00019,2]
[319334422,1710667849939,-891.27138097,0.00019,2]
[319334423,1710667849951,-42818.38718645,0.00019,2]
[319334424,1710667849964,-14904.668,0.00019,2]
[319334425,1710667849984,-919.520167,0.00017999,2]
[319334426,1710667849994,-8537.04174153,0.00019,2]
[319334427,1710667850006,-37825.81541658,0.00019,2]
[319334428,1710667850019,-1385240.67726021,0.00019,2]
[319334429,1710667850032,-36156.46352027,0.00019,2]
[319334430,1710667850048,-36463.53648099,0.00019,2]
[319334431,1710667850351,-617.88696358,0.00019,2]
[319334432,1710667850366,-515.66921566,0.00019,2]
[319334433,1710667850378,-787.51975431,0.00019,2]
[319334434,1710667850772,-2901.04000001,0.00019,2]
[319334435,1710667850783,-72187.03131889,0.00019,2]
[319334436,1710667850799,-560.50829855,0.00019,2]
[319334437,1710667850812,-466.98336431,0.00019,2]
[319334438,1710667850913,3575.56066809,0.00011585,2]
[319334439,1710667850961,13486.75954251,0.00011585,2]
[319334440,1710667855054,19555.90483113,0.00011585,2]
[319334441,1710667861658,340.1693517,0.00011585,2]
[319334442,1710667865591,286.68077711,0.00011585,2]
[319334444,1710667873050,12837.35824162,0.00011585,2]
[319334445,1710667883587,287.21874446,0.00011585,2]
[319334447,1710668020530,9677.25841445,0.00011585,2]
[319334448,1710668348921,1076.92628027,0.00011585,10]
[319334449,1710668366845,1076.92628027,0.00011585,10]
[319334450,1710668382847,1076.92628027,0.00011585,10]
[319334452,1710668387819,151.48689958,0.00021169,120]
[319334463,1710668400847,1076.92628027,0.00011585,10]
[319334464,1710668418896,1076.92628027,0.00011585,10]
[319334465,1710668438850,1076.92628027,0.00011585,10]
[319334466,1710668458846,1076.92628027,0.00011585,10]
[319334467,1710668476852,723.40117335,0.00011585,10]
[319334468,1710668686347,150.35,0.0001064,2]
[319334472,1710668739146,5079.673452,0.00011774,2]
[319334485,1710668842064,159.39782374,0.00011724,2]
[319334486,1710668955882,360.53097053,0.0001181,2]
[319334487,1710668958821,269.98525985,0.0001181,2]
[319334488,1710668960635,1053.13691917,0.0001181,2]
[319334489,1710668974333,529.23232972,0.0001181,2]
[319334490,1710668975297,2163.54164786,0.0001181,2]
[319334491,1710668975378,1052.89324976,0.0001181,2]
[319334492,1710668979506,5609.77615969,0.0001181,2]
[319334493,1710668981775,258.97241146,0.0001181,2]
[319334494,1710668981854,155.0,0.0001181,2]
[319334495,1710668986630,775.86408371,0.0001181,2]
[319334496,1710668990659,4302.00755965,0.0001181,2]
[319334497,1710668994858,679.18882137,0.0001181,2]
[319334498,1710668998198,249.71524142,0.00011751,2]
[319334500,1710669031472,-358.08244329,0.00011811,2]
[319334501,1710669031482,-208.61870071,0.00011811,2]
[319334502,1710669031491,-269.59646817,0.00011811,2]
[319334503,1710669031500,-51.62121908,0.00011811,2]
[319334504,1710669031512,-572.24753414,0.00011811,2]
[319334505,1710669031522,-424.13945346,0.00011811,2]
[319334506,1710669031531,-902.37176317,0.00011811,2]
[319334507,1710669031541,-528.85185714,0.00011811,2]
[319334508,1710669031552,-258.8115165,0.00011811,2]
[319334509,1710669031562,-155.0,0.00011811,2]
[319334510,1710669031572,-775.50496563,0.00011811,2]
[319334511,1710669031582,-4302.00755965,0.00011811,2]
[319334512,1710669031591,-678.79080187,0.00011811,2]
[319334513,1710669031600,-31649.58443727,0.00011811,2]
[319334514,1710669031613,-3353.28269197,0.00011811,2]
[319334515,1710669031622,-2596.78423448,0.00011812,2]
[319334516,1710669031631,-509.46914664,0.00011812,2]
[319334517,1710669031640,-150.0,0.00011818,2]
[319334518,1710669031650,-533.82848449,0.00011833,2]
[319334519,1710669031659,-150.0,0.00011836,2]
[319334520,1710669031668,-508.15,0.00011874,2]
[319334521,1710669031677,-517.85,0.00011943,2]
[319334522,1710669031686,-1718.42,0.00012586,2]
[319334523,1710669031695,-23900.0,0.00012607,2]
[319334524,1710669031704,-181.8,0.00012626,2]
[319334525,1710669031713,-499.99,0.00012656,2]
[319334526,1710669031723,-1835.15,0.00012677,2]
[319334527,1710669031731,-3.54283342,0.00012863,2]
[319334528,1710669031747,-1882.39245509,0.00012863,2]
[319334529,1710669031758,-3619.12155,0.00012863,2]
[319334530,1710669031769,-3329.54,0.00012863,2]
[319334531,1710669031993,-374.4068307,0.00012863,2]
[319334532,1710669032005,-719.9,0.00012863,2]
[319334533,1710669032026,-431.56,0.00012863,2]
[319334534,1710669032044,-4422.13094872,0.00012863,2]
[319334535,1710669032071,-351.26395773,0.00012863,2]
[319334536,1710669032082,-5942.54137789,0.00012863,2]
[319334537,1710669032105,-513.09014822,0.00012863,2]
[319334722,1710669037470,-299.99,0.00012871,2]
[319334724,1710669037480,-0.01,0.00012871,2]
[319334727,1710669037496,-224.98,0.00012871,2]
[319334729,1710669037506,-4093.147187,0.00012896,2]
[319334733,1710669037536,-1243.082813,0.00012896,2]
[319334735,1710669037546,-476.69,0.00012993,2]
[319334736,1710669037557,-210.0,0.00012999,2]
[319334737,1710669037568,-796.98,0.00013028,2]
[319334738,1710669037578,-476.69,0.00013029,2]
[319334739,1710669037587,-476.69,0.00013064,2]
[319334740,1710669037596,-476.69,0.000131,2]
[319334741,1710669037606,-8133.177197,0.00013136,2]
[319334742,1710669037618,-3814.928,0.00013136,2]
[319334743,1710669037629,-358.21236,0.00013136,2]